[Event "SWE-ch Masters Elite 2019"]
[Site "Eskilstuna"]
[Date "2019.07.06"]
[Round "1.1"]
[White "Logdahl, Harald"]
[Black "Cramling, Dan"]
[Result "0-1"]
[ECO "B06"]
[WhiteElo "2269"]
[BlackElo "2321"]
[Annotator "NA"]
[PlyCount "136"]
[EventDate "2019.07.06"]
[EventType "tourn"]
[EventCountry "SWE"]
[SourceTitle "playchess.com"]
[Source "ChessBase"]
[SourceQuality "1"]
[TimeControl "40/5400+30:1800+30"]

1. e4 {[%emt 0:00:00]} g6 {[%emt 0:03:15]} 2. d4 {[%emt 0:00:00]} Bg7 {[%emt 0:00:12]} 3. Nc3 {[%emt 0:00:00]} d6 {[%emt 0:00:23]} 4. Be3 {[%emt 0:00:08]} a6 {[%emt 0:00:59]} 5. Qd2 {[%emt 0:00:22]} b5 {[%emt 0:00:42]} 6. f3 {[%emt 0:00:13]} Nd7 {[%emt 0:01:57]} 7. h4 {[%emt 0:00:37]} h6 {[%emt 0:08:03]} 8. h5 {[%emt 0:04:02]} g5 {[%emt 0:01:31]} 9. a4 {[%emt 0:01:00]} b4 {[%emt 0:01:30]} 10. Nd1 {[%emt 0:00:06]} c5 {[%emt 0:05:56]} 11. c3 {[%emt 0:00:38]} bxc3 {[%emt 0:01:29]} 12. bxc3 {[%emt 0:00:12]} Ngf6 {[%emt 0:00:27]} 13. Ne2 {[%emt 0:09:14]} Qa5 {[%emt 0:11:16]} 14. Ng3 {[%emt 0:02:27]} Nb6 {[%emt 0:06:07]} 15. Bd3 {[%emt 0:17:23]} Bd7 {[%emt 0:18:09]} 16. d5 {[%emt 0:17:40]} e6 {[%emt 0:02:17]} 17. dxe6 {[%emt 0:01:29]} Bxe6 {[%emt 0:03:53]} 18. Ra3 {[%emt 0:14:12]} d5 {[%emt 0:04:54]} 19. Qf2 {[%emt 0:09:08]} dxe4 {[%emt 0:05:31]} 20. Bd2 {[%emt 0:09:43]} Nbd7 {[%emt 0:10:44]} 21. Nxe4 {[%emt 0:01:49]} Ne5 {[%emt 0:01:47]} 22. c4 {[%emt 0:06:53]} Nxd3+ {[%emt 0:01:50]} 23. Rxd3 {[%emt 0:00:06]} Nxe4 {[%emt 0:00:51]} 24. Bxa5 {[%emt 0:01:39]} Nxf2 {[%emt 0:00:13]} 25. Kxf2 {[%emt 0:00:56]} Bxc4 {[%emt 0:02:13]} 26. Re1+ {[%emt 0:01:09]} Be6 {[%emt 0:00:16]} 27. Bc3 {[%emt 0:00:49]} O-O {[%emt 0:00:41]} 28. Bxg7 {[%emt 0:00:17]} Kxg7 {[%emt 0:00:12]} 29. Ne3 {[%emt 0:01:01]} Rfc8 {[%emt 0:04:38]} 30. Rc1 {[%emt 0:00:09]} c4 {[%emt 0:00:56]} 31. Rdc3 {[%emt 0:00:57]} Rc5 {[%emt 0:00:30]} 32. g4 {[%emt 0:00:19]} Rb8 {[%emt 0:00:26]} 33. R1c2 {[%emt 0:00:50]} Rb4 {[%emt 0:01:57]} 34. a5 {[%emt 0:00:06]} Rb3 {[%emt 0:00:38]} 35. f4 {[%emt 0:01:20]} gxf4 {[%emt 0:00:19]} 36. Ng2 {[%emt 0:00:03]} Rxc3 {[%emt 0:00:34]} 37. Rxc3 {[%emt 0:00:02]} Bxg4 {[%emt 0:00:26]} 38. Nxf4 {[%emt 0:00:07]} Bxh5 {[%emt 0:00:11]} 39. Ke3 {[%emt 0:00:30]} Rxa5 {[%emt 0:00:29]} 40. Rxc4 {[%emt 0:00:09]} Bg4 {[%emt 0:00:38]} 41. Ng2 {[%emt 0:05:41]} Be6 {[%emt 0:01:43]} 42. Rc1 {[%emt 0:01:32]} Ra3+ {[%emt 0:00:50]} 43. Kd4 {[%emt 0:00:32]} a5 {[%emt 0:01:18]} 44. Nf4 {[%emt 0:01:30]} Ra4+ {[%emt 0:02:59]} 45. Ke5 {[%emt 0:00:57]} Bg4 {[%emt 0:02:47]} 46. Nd5 {[%emt 0:04:47]} Kg6 {[%emt 0:01:16]} 47. Rc7 {[%emt 0:00:31]} Ra1 {[%emt 0:01:54]} 48. Ra7 {[%emt 0:02:31]} h5 {[%emt 0:04:05]} 49. Nf4+ {[%emt 0:07:28]} Kg7 {[%emt 0:01:03]} 50. Ng2 {[%emt 0:02:19]} a4 {[%emt 0:00:53]} 51. Ne3 {[%emt 0:00:15]} Be6 {[%emt 0:02:11]} 52. Nc2 {[%emt 0:01:15]} Ra2 {[%emt 0:07:04]} 53. Nd4 {[%emt 0:00:31]} Bg4 {[%emt 0:04:45]} 54. Kf4 {[%emt 0:00:09]} Kf6 {[%emt 0:00:24]} 55. Nb5 {[%emt 0:03:20]} Rf2+ {[%emt 0:02:26]} 56. Ke4 {[%emt 0:02:30]} Kg5 {[%emt 0:01:04]} 57. Nd4 {[%emt 0:01:38]} Bd1 {[%emt 0:00:50]} 58. Ke3 {[%emt 0:00:25]} Rf6 {[%emt 0:00:19]} 59. Ra8 {[%emt 0:02:15]} h4 {[%emt 0:00:53]} 60. Kd2 {[%emt 0:00:37]} Rd6 {[%emt 0:00:38]} 61. Kc3 {[%emt 0:01:03]} h3 {[%emt 0:00:27]} 62. Rh8 {[%emt 0:00:33]} Rh6 {[%emt 0:00:25]} 63. Rg8+ {[%emt 0:00:02]} Kf4 {[%emt 0:00:39]} 64. Rg1 {[%emt 0:00:05]} Bg4 {[%emt 0:00:45]} 65. Rf1+ {[%emt 0:00:25]} Kg5 {[%emt 0:00:22]} 66. Kb4 {[%emt 0:00:37]} h2 {[%emt 0:00:32]} 67. Rh1 {[%emt 0:00:05]} Rh4 {[%emt 0:00:32]} 68. Ka3 {[%emt 0:00:36]} Kf4 {[%emt 0:00:32]} 0-1

[Event "SWE-ch Masters Elite 2019"]
[Site "Eskilstuna"]
[Date "2019.07.06"]
[Round "1.2"]
[White "Malmstig, Erik"]
[Black "Andersson, Tommy"]
[Result "1-0"]
[ECO "E61"]
[WhiteElo "2357"]
[BlackElo "2390"]
[Annotator "NA"]
[PlyCount "121"]
[EventDate "2019.07.06"]
[EventType "tourn"]
[EventCountry "SWE"]
[SourceTitle "playchess.com"]
[Source "ChessBase"]
[SourceQuality "1"]
[TimeControl "40/5400+30:1800+30"]

1. d4 {[%emt 0:00:00]} d5 {[%emt 0:00:02]} 2. c4 {[%emt 0:00:00]} c6 {[%emt 0:01:04]} 3. Nc3 {[%emt 0:00:14]} Nf6 {[%emt 0:00:27]} 4. e3 {[%emt 0:00:32]} g6 {[%emt 0:03:14]} 5. Nf3 {[%emt 0:01:02]} Bg7 {[%emt 0:00:05]} 6. Be2 {[%emt 0:01:08]} O-O {[%emt 0:04:12]} 7. Ne5 {[%emt 0:01:50]} c5 {[%emt 0:09:50]} 8. O-O {[%emt 0:00:17]} cxd4 {[%emt 0:06:03]} 9. exd4 {[%emt 0:02:30]} dxc4 {[%emt 0:14:09]} 10. Bxc4 {[%emt 0:16:10]} Nc6 {[%emt 0:01:57]} 11. Nxc6 {[%emt 0:23:24]} bxc6 {[%emt 0:00:42]} 12. h3 {[%emt 0:04:10]} Bf5 {[%emt 0:04:40]} 13. Re1 {[%emt 0:05:43]} Qd6 {[%emt 0:04:54]} 14. Bg5 {[%emt 0:11:50]} Rad8 {[%emt 0:16:11]} 15. Qa4 {[%emt 0:16:52]} h6 {[%emt 0:10:45]} 16. Be3 {[%emt 0:07:16]} Rd7 {[%emt 0:10:23]} 17. Rac1 {[%emt 0:02:32]} g5 {[%emt 0:04:18]} 18. a3 {[%emt 0:01:47]} g4 {[%emt 0:00:28]} 19. d5 {[%emt 0:00:56]} cxd5 {[%emt 0:01:17]} 20. Bb5 {[%emt 0:00:43]} Rdd8 {[%emt 0:01:39]} 21. Bf4 {[%emt 0:00:48]} Qb6 {[%emt 0:02:20]} 22. Rxe7 {[%emt 0:00:26]} d4 {[%emt 0:00:52]} 23. Nd1 {[%emt 0:00:41]} Nd5 {[%emt 0:01:08]} 24. Rc6 {[%emt 0:00:28]} Qxc6 {[%emt 0:00:32]} 25. Bxc6 {[%emt 0:00:06]} Nxe7 {[%emt 0:00:05]} 26. hxg4 {[%emt 0:00:46]} Bxg4 {[%emt 0:00:32]} 27. Be4 {[%emt 0:00:25]} Nd5 {[%emt 0:01:06]} 28. Bd2 {[%emt 0:00:25]} Nb6 {[%emt 0:00:30]} 29. Qc2 {[%emt 0:00:39]} d3 {[%emt 0:00:16]} 30. Qb3 {[%emt 0:00:29]} Rfe8 {[%emt 0:00:15]} 31. f3 {[%emt 0:00:39]} Be6 {[%emt 0:00:07]} 32. Qb5 {[%emt 0:00:24]} Nc4 {[%emt 0:00:17]} 33. Bf4 {[%emt 0:00:24]} d2 {[%emt 0:01:03]} 34. Qb4 {[%emt 0:00:43]} a5 {[%emt 0:00:46]} 35. Qb5 {[%emt 0:00:31]} Re7 {[%emt 0:00:41]} 36. b3 {[%emt 0:00:22]} Nb2 {[%emt 0:00:21]} 37. Qxa5 {[%emt 0:00:16]} Red7 {[%emt 0:00:22]} 38. Bc6 {[%emt 0:00:46]} Rd3 {[%emt 0:00:44]} 39. Be4 {[%emt 0:00:26]} R3d7 {[%emt 0:00:29]} 40. Bc6 {[%emt 0:00:41]} Rd4 {[%emt 0:00:34]} 41. Nxb2 {[%emt 0:30:32]} d1=Q+ {[%emt 0:07:30]} 42. Nxd1 {[%emt 0:00:00]} Rxd1+ {[%emt 0:00:06]} 43. Kh2 {[%emt 0:00:00]} Bxb3 {[%emt 0:03:00]} 44. Be4 {[%emt 0:00:00]} Be6 {[%emt 0:06:16]} 45. a4 {[%emt 0:00:00]} R1d4 {[%emt 0:15:42]} 46. Qb6 {[%emt 0:00:00]} Bf6 {[%emt 0:00:27]} 47. a5 {[%emt 0:00:00]} Ra4 {[%emt 0:00:35]} 48. a6 {[%emt 0:00:00]} Rd1 {[%emt 0:00:30]} 49. Bc2 {[%emt 0:00:00]} Rxf4 {[%emt 0:00:14]} 50. Qb8+ {[%emt 0:00:00]} Kg7 {[%emt 0:00:32]} 51. Qxf4 {[%emt 0:00:00]} Rd5 {[%emt 0:00:35]} 52. Qg3+ {[%emt 0:00:12]} Kf8 {[%emt 0:00:21]} 53. Qb8+ {[%emt 0:02:01]} Kg7 {[%emt 0:00:13]} 54. f4 {[%emt 0:00:46]} Rh5+ {[%emt 0:01:00]} 55. Kg3 {[%emt 0:00:54]} Bd5 {[%emt 0:00:19]} 56. a7 {[%emt 0:01:32]} Rh1 {[%emt 0:00:24]} 57. a8=Q {[%emt 0:01:18]} Bh4+ {[%emt 0:00:51]} 58. Kg4 {[%emt 0:00:16]} h5+ {[%emt 0:00:06]} 59. Kf5 {[%emt 0:00:46]} Be6+ {[%emt 0:00:46]} 60. Ke4 {[%emt 0:00:51]} Re1+ {[%emt 0:00:08]} 61. Kd3 {[%emt 0:00:32]} 1-0

[Event "SWE-ch Masters Elite 2019"]
[Site "Eskilstuna"]
[Date "2019.07.06"]
[Round "1.3"]
[White "Lindberg, Bengt"]
[Black "Wengholm, Anders"]
[Result "1-0"]
[ECO "B80"]
[WhiteElo "2384"]
[BlackElo "2219"]
[Annotator "NA"]
[PlyCount "81"]
[EventDate "2019.07.06"]
[EventType "tourn"]
[EventCountry "SWE"]
[SourceTitle "playchess.com"]
[Source "ChessBase"]
[SourceQuality "1"]
[TimeControl "40/5400+30:1800+30"]

1. e4 {[%emt 0:00:00]} c5 {[%emt 0:00:00]} 2. Nf3 {[%emt 0:00:00]} d6 {[%emt 0:00:44]} 3. d4 {[%emt 0:00:01]} cxd4 {[%emt 0:00:06]} 4. Nxd4 {[%emt 0:00:05]} Nf6 {[%emt 0:00:07]} 5. Nc3 {[%emt 0:00:06]} e6 {[%emt 0:00:13]} 6. Be3 {[%emt 0:00:37]} a6 {[%emt 0:00:51]} 7. f3 {[%emt 0:01:06]} b5 {[%emt 0:02:48]} 8. g4 {[%emt 0:00:17]} Bb7 {[%emt 0:16:54]} 9. g5 {[%emt 0:04:09]} Nfd7 {[%emt 0:00:42]} 10. Qd2 {[%emt 0:01:58]} Nb6 {[%emt 0:03:26]} 11. Bd3 {[%emt 0:03:22]} N8d7 {[%emt 0:02:43]} 12. O-O-O {[%emt 0:01:45]} Rc8 {[%emt 0:03:30]} 13. Kb1 {[%emt 0:02:02]} Ne5 {[%emt 0:08:33]} 14. Qe1 {[%emt 0:00:53]} Be7 {[%emt 0:05:15]} 15. f4 {[%emt 0:03:03]} Nxd3 {[%emt 0:15:37]} 16. cxd3 {[%emt 0:00:09]} g6 {[%emt 0:10:18]} 17. h4 {[%emt 0:08:18]} e5 {[%emt 0:06:54]} 18. Nf3 {[%emt 0:08:04]} b4 {[%emt 0:05:52]} 19. Ne2 {[%emt 0:02:57]} d5 {[%emt 0:00:18]} 20. Qf2 {[%emt 0:06:59]} Nd7 {[%emt 0:03:43]} 21. Ng3 {[%emt 0:20:35]} d4 {[%emt 0:04:23]} 22. Bc1 {[%emt 0:01:57]} b3 {[%emt 0:00:30]} 23. a3 {[%emt 0:01:50]} Qc7 {[%emt 0:00:54]} 24. Ne1 {[%emt 0:06:10]} Bb4 {[%emt 0:03:45]} 25. Bd2 {[%emt 0:08:11]} Bxd2 {[%emt 0:00:05]} 26. Qxd2 {[%emt 0:00:05]} exf4 {[%emt 0:00:06]} 27. Ne2 {[%emt 0:00:05]} f5 {[%emt 0:00:20]} 28. gxf6 {[%emt 0:02:21]} O-O {[%emt 0:00:31]} 29. Nxd4 {[%emt 0:04:16]} Nxf6 {[%emt 0:01:25]} 30. Nef3 {[%emt 0:02:34]} Rcd8 {[%emt 0:01:35]} 31. Qb4 {[%emt 0:03:05]} Rfe8 {[%emt 0:01:14]} 32. Rc1 {[%emt 0:03:00]} Qe7 {[%emt 0:00:24]} 33. Qxb3+ {[%emt 0:00:43]} Kg7 {[%emt 0:00:35]} 34. h5 {[%emt 0:01:09]} Qf7 {[%emt 0:01:11]} 35. Qb6 {[%emt 0:02:04]} Nxe4 {[%emt 0:00:24]} 36. dxe4 {[%emt 0:01:36]} Bxe4+ {[%emt 0:00:04]} 37. Ka1 {[%emt 0:00:11]} Rd7 {[%emt 0:00:21]} 38. Ng5 {[%emt 0:01:25]} Qd5 {[%emt 0:00:48]} 39. Nde6+ {[%emt 0:00:50]} Kg8 {[%emt 0:00:17]} 40. Nxe4 {[%emt 0:00:54]} Qxe4 {[%emt 0:00:38]} 41. Nc5 {[%emt 0:30:38]} 1-0

[Event "SWE-ch Masters Elite 2019"]
[Site "Eskilstuna"]
[Date "2019.07.06"]
[Round "1.4"]
[White "Nyander, Joakim"]
[Black "Seo, Jung Min"]
[Result "1/2-1/2"]
[ECO "A13"]
[WhiteElo "2233"]
[BlackElo "2399"]
[Annotator "NA"]
[PlyCount "76"]
[EventDate "2019.07.06"]
[EventType "tourn"]
[EventCountry "SWE"]
[SourceTitle "playchess.com"]
[Source "ChessBase"]
[SourceQuality "1"]
[TimeControl "40/5400+30:1800+30"]

1. c4 {[%emt 0:00:00]} e6 {[%emt 0:00:00]} 2. g3 {[%emt 0:00:24]} d5 {[%emt 0:01:15]} 3. Bg2 {[%emt 0:01:26]} d4 {[%emt 0:01:27]} 4. Nf3 {[%emt 0:03:19]} Nf6 {[%emt 0:01:45]} 5. O-O {[%emt 0:02:19]} c5 {[%emt 0:02:16]} 6. e3 {[%emt 0:12:26]} Nc6 {[%emt 0:01:20]} 7. a3 {[%emt 0:10:25]} a5 {[%emt 0:05:27]} 8. d3 {[%emt 0:04:41]} Bd6 {[%emt 0:02:01]} 9. exd4 {[%emt 0:03:50]} cxd4 {[%emt 0:00:03]} 10. Bg5 {[%emt 0:01:05]} h6 {[%emt 0:01:54]} 11. Bxf6 {[%emt 0:00:32]} Qxf6 {[%emt 0:00:04]} 12. Nbd2 {[%emt 0:02:26]} Qe7 {[%emt 0:01:26]} 13. Re1 {[%emt 0:01:46]} O-O {[%emt 0:03:12]} 14. Nb3 {[%emt 0:04:42]} Qd8 {[%emt 0:10:15]} 15. Rc1 {[%emt 0:12:29]} e5 {[%emt 0:01:40]} 16. Nbd2 {[%emt 0:04:58]} Re8 {[%emt 0:03:56]} 17. c5 {[%emt 0:03:54]} Bc7 {[%emt 0:07:35]} 18. Nc4 {[%emt 0:03:10]} a4 {[%emt 0:09:56]} 19. Nfd2 {[%emt 0:03:26]} f5 {[%emt 0:00:42]} 20. b4 {[%emt 0:05:06]} axb3 {[%emt 0:01:07]} 21. Qxb3 {[%emt 0:00:04]} Kh7 {[%emt 0:01:07]} 22. Ra1 {[%emt 0:03:08]} Rb8 {[%emt 0:02:53]} 23. Reb1 {[%emt 0:02:09]} Be6 {[%emt 0:13:59]} 24. Qb5 {[%emt 0:00:36]} Qd7 {[%emt 0:00:41]} 25. a4 {[%emt 0:01:56]} Red8 {[%emt 0:01:40]} 26. Nb6 {[%emt 0:05:07]} Bxb6 {[%emt 0:00:18]} 27. cxb6 {[%emt 0:00:06]} Bd5 {[%emt 0:00:21]} 28. a5 {[%emt 0:00:50]} Bxg2 {[%emt 0:02:44]} 29. Kxg2 {[%emt 0:00:08]} Qd5+ {[%emt 0:11:38]} 30. Qxd5 {[%emt 0:00:48]} Rxd5 {[%emt 0:00:01]} 31. a6 {[%emt 0:00:26]} bxa6 {[%emt 0:00:04]} 32. Rxa6 {[%emt 0:00:18]} Rb7 {[%emt 0:00:03]} 33. Kf3 {[%emt 0:01:40]} Kg6 {[%emt 0:01:48]} 34. Ra4 {[%emt 0:00:57]} Kf6 {[%emt 0:01:04]} 35. Rc4 {[%emt 0:02:10]} Ne7 {[%emt 0:04:35]} 36. Ra4 {[%emt 0:00:48]} Nc6 {[%emt 0:00:14]} 37. Rc4 {[%emt 0:00:07]} Ne7 {[%emt 0:00:02]} 38. Ra4 {[%emt 0:00:15]} e4+ 1/2-1/2

[Event "SWE-ch Masters Elite 2019"]
[Site "Eskilstuna"]
[Date "2019.07.06"]
[Round "1.5"]
[White "Rydstrom, Tom"]
[Black "Ernst, Thomas"]
[Result "0-1"]
[ECO "B75"]
[WhiteElo "2345"]
[BlackElo "2335"]
[Annotator "NA"]
[PlyCount "160"]
[EventDate "2019.07.06"]
[EventType "tourn"]
[EventCountry "SWE"]
[SourceTitle "playchess.com"]
[Source "ChessBase"]
[SourceQuality "1"]
[TimeControl "40/5400+30:1800+30"]

1. e4 {[%emt 0:00:00]} c5 {[%emt 0:00:00]} 2. Nf3 {[%emt 0:00:00]} d6 {[%emt 0:00:00]} 3. d4 {[%emt 0:00:00]} cxd4 {[%emt 0:00:00]} 4. Nxd4 {[%emt 0:00:00]} Nf6 {[%emt 0:00:00]} 5. Nc3 {[%emt 0:00:00]} g6 {[%emt 0:00:09]} 6. Be3 {[%emt 0:00:29]} Bg7 {[%emt 0:00:18]} 7. f3 {[%emt 0:00:05]} Nc6 {[%emt 0:00:18]} 8. Bc4 {[%emt 0:00:38]} Qb6 {[%emt 0:00:25]} 9. Bb3 {[%emt 0:42:04]} Nxe4 {[%emt 0:08:44]} 10. Nf5 {[%emt 0:00:02]} Bxf5 {[%emt 0:29:34]} 11. Bxb6 {[%emt 0:01:45]} Nxc3 {[%emt 0:00:09]} 12. Qd2 {[%emt 0:02:23]} axb6 {[%emt 0:01:55]} 13. bxc3 {[%emt 0:00:06]} Ra5 {[%emt 0:00:32]} 14. O-O {[%emt 0:01:35]} Rc5 {[%emt 0:00:23]} 15. Rad1 {[%emt 0:10:17]} O-O {[%emt 0:01:45]} 16. Kh1 {[%emt 0:01:20]} Bxc3 {[%emt 0:00:39]} 17. Qf2 {[%emt 0:00:06]} Bf6 {[%emt 0:07:32]} 18. Rd5 {[%emt 0:03:08]} Rc8 {[%emt 0:06:46]} 19. Re1 {[%emt 0:19:34]} Nb4 {[%emt 0:05:51]} 20. Rxc5 {[%emt 0:03:21]} Rxc5 {[%emt 0:00:14]} 21. h3 {[%emt 0:09:12]} Nxc2 {[%emt 0:05:27]} 22. Bxc2 {[%emt 0:02:01]} Bxc2 {[%emt 0:00:21]} 23. Rc1 {[%emt 0:01:46]} Bf5 {[%emt 0:00:26]} 24. Qe1 {[%emt 0:01:33]} Bd7 {[%emt 0:03:59]} 25. Rd1 {[%emt 0:00:32]} Bc6 {[%emt 0:01:01]} 26. Qb4 {[%emt 0:00:10]} b5 {[%emt 0:00:30]} 27. Qe1 {[%emt 0:00:48]} Rc2 {[%emt 0:00:48]} 28. a3 {[%emt 0:00:08]} d5 {[%emt 0:01:31]} 29. Rc1 {[%emt 0:00:50]} Ra2 {[%emt 0:00:20]} 30. Qb4 {[%emt 0:00:34]} Rb2 {[%emt 0:01:00]} 31. Qc5 {[%emt 0:00:30]} Rb3 {[%emt 0:00:50]} 32. Re1 {[%emt 0:00:22]} Rc3 {[%emt 0:01:13]} 33. Qb6 {[%emt 0:00:40]} Rxa3 {[%emt 0:02:38]} 34. h4 {[%emt 0:00:24]} Ra4 {[%emt 0:01:31]} 35. g4 {[%emt 0:00:34]} h6 {[%emt 0:03:15]} 36. Qd8+ {[%emt 0:00:10]} Kg7 {[%emt 0:00:17]} 37. Kg2 {[%emt 0:00:51]} Bxh4 {[%emt 0:07:05]} 38. Rxe7 {[%emt 0:00:15]} Bxe7 39. Qxe7 {[%emt 0:00:03]} d4 {[%emt 0:01:11]} 40. Qe5+ {[%emt 0:00:55]} Kf8 {[%emt 0:00:25]} 41. Qh8+ {[%emt 0:30:15]} Ke7 {[%emt 0:30:22]} 42. Kf2 {[%emt 0:00:00]} Rc4 {[%emt 0:00:00]} 43. f4 {[%emt 0:00:00]} b4 {[%emt 0:00:00]} 44. Qe5+ {[%emt 0:00:00]} Kd7 {[%emt 0:00:00]} 45. f5 {[%emt 0:00:00]} gxf5 {[%emt 0:00:00]} 46. Qxf5+ {[%emt 0:00:00]} Kd6 {[%emt 0:00:00]} 47. Qxf7 {[%emt 0:00:00]} Kc5 {[%emt 0:00:00]} 48. Qf5+ {[%emt 0:00:38]} Kb6 {[%emt 0:00:00]} 49. Qe6 {[%emt 0:00:28]} Kb5 {[%emt 0:00:00]} 50. Ke2 {[%emt 0:00:33]} b3 {[%emt 0:00:00]} 51. Qf5+ {[%emt 0:01:46]} Ka4 {[%emt 0:00:00]} 52. Qb1 {[%emt 0:00:58]} Bb5 {[%emt 0:00:00]} 53. Kd1 {[%emt 0:00:34]} d3 {[%emt 0:00:00]} 54. Qa1+ {[%emt 0:00:01]} Kb4 {[%emt 0:00:00]} 55. Qf6 {[%emt 0:00:19]} Rxg4 {[%emt 0:00:00]} 56. Qf8+ {[%emt 0:00:40]} Ka4 {[%emt 0:00:00]} 57. Qa8+ {[%emt 0:00:11]} Ba6 {[%emt 0:00:00]} 58. Kc1 {[%emt 0:01:49]} Rg1+ {[%emt 0:00:00]} 59. Kb2 {[%emt 0:00:07]} Rg2+ {[%emt 0:00:00]} 60. Kb1 {[%emt 0:01:20]} d2 {[%emt 0:05:05]} 61. Qe8+ {[%emt 0:00:24]} Bb5 {[%emt 0:03:13]} 62. Qa8+ {[%emt 0:01:09]} Kb4 {[%emt 0:00:16]} 63. Qf8+ {[%emt 0:00:03]} Kc4 {[%emt 0:03:22]} 64. Qf4+ {[%emt 0:00:12]} Kc5 {[%emt 0:00:33]} 65. Qf8+ {[%emt 0:00:32]} Kb6 {[%emt 0:00:27]} 66. Qd6+ {[%emt 0:00:54]} Bc6 {[%emt 0:00:32]} 67. Qb4+ {[%emt 0:00:20]} Kc7 {[%emt 0:00:40]} 68. Qf4+ {[%emt 0:00:13]} Kd7 {[%emt 0:00:59]} 69. Qf7+ {[%emt 0:00:18]} Kd6 {[%emt 0:00:12]} 70. Qf6+ {[%emt 0:01:21]} Kd5 {[%emt 0:00:10]} 71. Qf5+ {[%emt 0:00:39]} Kd4 {[%emt 0:00:14]} 72. Qf6+ {[%emt 0:00:01]} Kd3 {[%emt 0:02:23]} 73. Qd6+ {[%emt 0:00:33]} Kc4 {[%emt 0:01:04]} 74. Qf4+ {[%emt 0:00:19]} Kb5 {[%emt 0:00:31]} 75. Qe5+ {[%emt 0:00:08]} Kc4 {[%emt 0:01:58]} 76. Qf4+ {[%emt 0:00:37]} Kd3 {[%emt 0:00:15]} 77. Qd6+ {[%emt 0:00:41]} Ke2 {[%emt 0:00:26]} 78. Qe5+ {[%emt 0:00:33]} Kf1 {[%emt 0:00:18]} 79. Qf5+ {[%emt 0:01:07]} Kg1 {[%emt 0:00:59]} 80. Qc5+ {[%emt 0:00:34]} Rf2 {[%emt 0:00:30]} 0-1

[Event "SWE-ch Masters Elite 2019"]
[Site "Eskilstuna"]
[Date "2019.07.07"]
[Round "2.1"]
[White "Cramling, Dan"]
[Black "Andersson, Tommy"]
[Result "1-0"]
[ECO "D53"]
[WhiteElo "2321"]
[BlackElo "2390"]
[Annotator "NA"]
[PlyCount "61"]
[EventDate "2019.07.06"]
[EventType "tourn"]
[EventCountry "SWE"]
[SourceTitle "playchess.com"]
[Source "ChessBase"]
[SourceQuality "1"]
[TimeControl "40/5400+30:1800+30"]

1. d4 {[%emt 0:05:09]} Nf6 {[%emt 0:00:00]} 2. c4 {[%emt 0:00:08]} e6 {[%emt 0:00:00]} 3. Nc3 {[%emt 0:00:11]} d5 {[%emt 0:00:00]} 4. Bg5 {[%emt 0:00:49]} c6 {[%emt 0:00:00]} 5. e3 {[%emt 0:00:34]} Be7 {[%emt 0:00:34]} 6. Nf3 {[%emt 0:00:34]} a6 {[%emt 0:01:15]} 7. Rc1 {[%emt 0:07:59]} b5 {[%emt 0:00:31]} 8. cxd5 {[%emt 0:01:15]} cxd5 {[%emt 0:00:24]} 9. Ne5 {[%emt 0:01:26]} Bb7 {[%emt 0:04:00]} 10. Bd3 {[%emt 0:03:52]} Nbd7 {[%emt 0:07:17]} 11. f4 {[%emt 0:08:31]} Rc8 {[%emt 0:05:21]} 12. O-O {[%emt 0:11:12]} Ne4 {[%emt 0:06:29]} 13. Bxe7 {[%emt 0:15:27]} Kxe7 {[%emt 0:22:05]} 14. f5 {[%emt 0:02:47]} Ndf6 {[%emt 0:20:29]} 15. Bxe4 {[%emt 0:10:09]} dxe4 {[%emt 0:00:31]} 16. fxe6 {[%emt 0:00:08]} fxe6 {[%emt 0:10:08]} 17. Qe1 {[%emt 0:03:43]} Ke8 {[%emt 0:10:29]} 18. Qh4 {[%emt 0:04:06]} Qe7 {[%emt 0:06:24]} 19. Ng6 {[%emt 0:02:09]} hxg6 {[%emt 0:00:07]} 20. Qxh8+ {[%emt 0:00:09]} Kf7 {[%emt 0:00:44]} 21. Qh4 {[%emt 0:00:40]} Kg8 {[%emt 0:03:04]} 22. Nxe4 {[%emt 0:02:07]} Rxc1 {[%emt 0:00:31]} 23. Nxf6+ {[%emt 0:00:08]} gxf6 {[%emt 0:00:19]} 24. Rxc1 {[%emt 0:00:11]} e5 {[%emt 0:00:16]} 25. Qh6 {[%emt 0:02:52]} exd4 {[%emt 0:00:13]} 26. Qxg6+ {[%emt 0:00:17]} Kf8 {[%emt 0:00:15]} 27. Rf1 {[%emt 0:00:47]} Qxe3+ {[%emt 0:00:28]} 28. Kh1 {[%emt 0:00:08]} Bd5 {[%emt 0:01:14]} 29. Rxf6+ {[%emt 0:00:34]} Ke7 {[%emt 0:00:05]} 30. Qg7+ {[%emt 0:00:13]} Ke8 {[%emt 0:00:06]} 31. Rf8# {[%emt 0:00:08]} 1-0

[Event "SWE-ch Masters Elite 2019"]
[Site "Eskilstuna"]
[Date "2019.07.07"]
[Round "2.3"]
[White "Seo, Jung Min"]
[Black "Malmstig, Erik"]
[Result "1-0"]
[ECO "A60"]
[WhiteElo "2399"]
[BlackElo "2357"]
[Annotator "NA"]
[PlyCount "79"]
[EventDate "2019.07.06"]
[EventType "tourn"]
[EventCountry "SWE"]
[SourceTitle "playchess.com"]
[Source "ChessBase"]
[SourceQuality "1"]
[TimeControl "40/5400+30:1800+30"]

1. d4 {[%emt 0:00:00]} e6 {[%emt 0:00:00]} 2. c4 {[%emt 0:00:03]} c5 {[%emt 0:00:06]} 3. d5 {[%emt 0:01:45]} exd5 {[%emt 0:00:32]} 4. cxd5 {[%emt 0:00:08]} d6 {[%emt 0:00:20]} 5. Nc3 {[%emt 0:00:09]} Nf6 {[%emt 0:00:35]} 6. Nf3 {[%emt 0:05:18]} a6 {[%emt 0:00:44]} 7. a4 {[%emt 0:00:12]} Be7 {[%emt 0:03:59]} 8. e4 {[%emt 0:10:28]} Bg4 {[%emt 0:01:14]} 9. h3 {[%emt 0:03:20]} Bh5 {[%emt 0:00:46]} 10. g4 {[%emt 0:05:01]} Bg6 {[%emt 0:00:18]} 11. Nd2 {[%emt 0:00:04]} O-O {[%emt 0:09:39]} 12. Bg2 {[%emt 0:10:40]} Nfd7 {[%emt 0:22:50]} 13. O-O {[%emt 0:10:46]} h6 {[%emt 0:01:07]} 14. f4 {[%emt 0:01:25]} Bf6 {[%emt 0:02:17]} 15. Qb3 {[%emt 0:07:23]} Bd4+ {[%emt 0:09:03]} 16. Kh1 {[%emt 0:00:55]} Nf6 {[%emt 0:05:12]} 17. Ne2 {[%emt 0:03:57]} Nbd7 {[%emt 0:07:02]} 18. Qd3 {[%emt 0:06:33]} Re8 {[%emt 0:18:43]} 19. Nxd4 {[%emt 0:01:51]} cxd4 {[%emt 0:00:16]} 20. Qxd4 {[%emt 0:00:16]} Rc8 {[%emt 0:03:36]} 21. Ra3 {[%emt 0:01:44]} Rc2 {[%emt 0:04:44]} 22. Rc3 {[%emt 0:00:39]} Rxc3 {[%emt 0:04:47]} 23. bxc3 {[%emt 0:00:02]} Nc5 {[%emt 0:00:29]} 24. e5 {[%emt 0:00:47]} Nfd7 {[%emt 0:02:45]} 25. e6 {[%emt 0:01:10]} fxe6 {[%emt 0:00:29]} 26. dxe6 {[%emt 0:00:05]} Nxe6 {[%emt 0:00:23]} 27. Qxd6 {[%emt 0:00:06]} Bf7 {[%emt 0:00:44]} 28. Ba3 {[%emt 0:03:28]} Nef8 {[%emt 0:00:23]} 29. Ne4 {[%emt 0:00:48]} Qh4 {[%emt 0:00:25]} 30. Qd4 {[%emt 0:00:49]} b5 {[%emt 0:00:44]} 31. Nd6 {[%emt 0:00:47]} Re2 {[%emt 0:00:43]} 32. Nxf7 {[%emt 0:00:39]} Kxf7 {[%emt 0:00:12]} 33. Bxf8 {[%emt 0:01:05]} Nxf8 {[%emt 0:00:15]} 34. Qd5+ {[%emt 0:00:08]} Ke7 {[%emt 0:00:24]} 35. axb5 {[%emt 0:01:05]} axb5 {[%emt 0:00:18]} 36. Qc5+ {[%emt 0:00:33]} Kf7 {[%emt 0:00:25]} 37. Qxb5 {[%emt 0:00:18]} Re3 {[%emt 0:00:48]} 38. Qd5+ {[%emt 0:00:29]} Ke8 {[%emt 0:00:30]} 39. Qa8+ {[%emt 0:02:42]} Qd8 {[%emt 0:00:53]} 40. Bc6+ {[%emt 0:00:17]} 1-0